bitfinex-derivatives/quotes_SOLF0:USTF0_20241218
["timestamp","ask_amount","ask_price","bid_price","bid_amount"]
[1734482560318,17.10413032,222.46,222.36,2.44]
[1734482560916,2.2473,222.43,222.36,2.44]
[1734482561116,160.65691444,222.48,222.36,2.44]
[1734482561418,5.39303554,222.48,222.36,2.44]
[1734482561713,7.19485302,222.48,222.36,2.44]
[1734482561919,1.4665,222.49,222.36,2.44]
[1734482561920,155.2638789,222.44,222.36,2.44]
[1734482562116,155.2638789,222.45,222.36,2.44]
[1734482562315,155.2638789,222.45,222.42,2.2474]
[1734482562522,155.2638789,222.46,222.43,0.63348019]
[1734482562718,155.2638789,222.46,222.42,2.44]
[1734482562922,155.2638789,222.46,222.41,2.44]
[1734482563113,2.2471,222.45,222.41,2.44]
[1734482563318,180.10901167,222.47,222.41,2.44]
[1734482563515,155.2638789,222.46,222.37,1.481]
[1734482563715,2.2476,222.4,222.38,2.44]
[1734482564020,155.2638789,222.42,222.37,2.44]
[1734482565426,2.2481,222.35,222.3,3.7295]
[1734482565723,2.2481,222.35,222.31,2.44]
[1734482565923,2.2481,222.35,222.32,2.44]
[1734482566116,155.2638789,222.4,222.3,3.7295]
[1734482566316,155.2638789,222.38,222.29,2.44]
[1734482566516,155.2638789,222.37,222.29,2.44]
[1734482566712,180.10901167,222.36,222.29,2.44]
[1734482566916,184.84892326,222.37,222.29,2.44]
[1734482567117,341.5805336,222.39,222.29,2.44]
[1734482567316,341.5805336,222.39,222.31,2.2485]
[1734482567317,2.248,222.36,222.31,2.2485]
[1734482567523,155.2638789,222.39,222.29,2.44]
[1734482567717,155.2638789,222.38,222.29,2.44]
[1734482567925,155.2638789,222.38,222.3,2.2485]
[1734482568422,155.2638789,222.39,222.3,2.2485]
[1734482568614,179.91815466,222.38,222.3,2.2485]
[1734482568921,7.22187313,222.37,222.3,2.2485]
[1734482569120,2.2481,222.35,222.29,2.44]
[1734482569418,17.77413316,222.36,222.29,2.44]
[1734482569624,155.2638789,222.38,222.29,2.44]
[1734482569924,17.77983028,222.37,222.3,2.2486]
[1734482570116,17.78747801,222.36,222.29,2.44]
[1734482570419,17.10413032,222.42,222.32,2.2484]
[1734482570614,24.87542838,222.41,222.32,2.2484]
[1734482570816,17.10413032,222.42,222.29,2.44]
[1734482570817,24.87542838,222.4,222.29,2.44]
[1734482571020,20.04073963,222.39,222.34,2.2481]
[1734482571222,17.79303963,222.38,222.35,2.44]
[1734482571427,7.2322904,222.37,222.35,2.44]
[1734482571626,2.2477,222.39,222.35,2.44]
[1734482572925,2.2478,222.38,222.35,2.44]
[1734482573326,17.80174245,222.38,222.35,2.44]
[1734482573624,7.23648201,222.37,222.35,2.44]
[1734482573927,24.8856066,222.4,222.35,2.44]
[1734482574228,17.80085023,222.39,222.35,2.44]
[1734482574429,2.248,222.36,222.35,2.44]
[1734482574829,7.23648201,222.36,222.31,2.44]
[1734482575130,17.10413032,222.41,222.31,2.44]
[1734482575131,2.2484,222.33,222.31,2.44]
[1734482575522,2.2484,222.33,222.3,2.44]
[1734482577427,17.79682894,222.39,222.27,1.4687]
[1734482577631,17.10413032,222.37,222.21,1.4846]
[1734482577933,10.69228885,222.34,222.22,2.44]
[1734482578132,10.69228885,222.34,222.23,5.47795176]
[1734482578735,2.2485,222.31,222.24,2.2491]
[1734482579031,10.69228885,222.34,222.24,2.2491]
[1734482579223,2.2489,222.28,222.22,2.44]
[1734482579425,17.79250817,222.33,222.22,4.6893]
[1734482579627,10.56006019,222.33,222.22,4.6893]
[1734482580124,2.249,222.27,222.22,4.6893]
[1734482580629,17.78673653,222.33,222.23,2.2493]
[1734482580826,2.249,222.26,222.23,2.44]
[1734482581936,42.52667226,222.34,222.23,2.44]
[1734482582131,2.2489,222.27,222.23,2.44]
[1734482582835,2.249,222.26,222.23,4.6893]
[1734482583226,2.2489,222.27,222.23,4.6893]
[1734482583429,7.23087636,222.32,222.23,2.44]
[1734482583628,155.2638789,222.33,222.23,2.44]
[1734482583827,2.2487,222.3,222.23,2.44]
[1734482584029,7.23089541,222.32,222.23,2.44]
[1734482584230,17.79104974,222.32,222.23,4.6892]
[1734482584436,2.2488,222.28,222.23,2.44]
[1734482585330,155.2638789,222.4,222.24,17.10944617]
[1734482585539,17.80413187,222.39,222.24,17.10944617]
[1734482585738,10.56731605,222.39,222.24,17.10944617]
[1734482586128,155.2638789,222.41,222.24,17.10944617]
[1734482586328,155.2638789,222.41,222.31,2.2484]
[1734482586329,2.2481,222.35,222.31,2.2484]
[1734482586639,2.2481,222.35,222.32,2.44]
[1734482588035,2.248,222.36,222.32,4.6884]
[1734482588336,155.2638789,222.42,222.32,2.44]
[1734482588540,341.5805336,222.44,222.32,2.44]
[1734482588837,2.2475,222.42,222.37,2.2478]
[1734482589037,7.24528415,222.42,222.38,2.44]
[1734482589234,17.82868174,222.43,222.38,2.44]
[1734482589431,7.24528415,222.42,222.38,2.44]
[1734482590537,2.2476,222.4,222.38,2.44]
[1734482592637,5.34042474,222.44,222.38,2.44]
[1734482592944,5.34042474,222.44,222.3,1.5383]
[1734482592945,185.59213643,222.44,222.3,1.5383]
[1734482593243,155.2638789,222.42,222.31,2.44]
[1734482593440,24.98783279,222.41,222.31,2.44]
[1734482593643,2.248,222.36,222.32,2.2484]
[1734482593943,2.248,222.36,222.33,2.44]
[1734482594333,7.26513945,222.37,222.34,2.2482]
[1734482594533,17.8865614,222.41,222.33,2.44]
[1734482594740,17.8865614,222.4,222.33,2.44]
[1734482594936,7.26513945,222.39,222.33,2.44]
[1734482595233,2.2481,222.35,222.31,2.2485]
[1734482595437,205.08326925,222.42,222.32,2.44]
[1734482595737,205.08326925,222.41,222.32,2.44]
[1734482595943,25.01058049,222.4,222.32,2.44]
[1734482596140,25.01058049,222.39,222.32,2.44]
[1734482596339,25.01058049,222.38,222.32,2.44]
[1734482596536,25.01058049,222.37,222.32,2.44]
[1734482596742,25.01058049,222.37,222.29,3.7141]
[1734482596743,10.6221521,222.36,222.29,2.2486]
[1734482596946,7.26513945,222.36,222.3,2.44]
[1734482597135,25.01389483,222.38,222.3,2.44]
[1734482597340,25.01389483,222.37,222.3,2.44]
[1734482597540,2.2485,222.31,222.3,2.44]
[1734482597745,17.88729155,222.35,222.3,2.44]
[1734482597941,2.2484,222.33,222.3,2.44]
[1734482598246,25.03363574,222.39,222.3,2.44]
[1734482598446,25.03363574,222.38,222.3,2.44]
[1734482598652,25.03363574,222.37,222.3,2.44]
[1734482598947,25.03363574,222.36,222.3,2.44]
[1734482599146,156.8088789,222.4,222.3,2.44]
[1734482599147,2.2485,222.31,222.3,2.44]
[1734482599341,17.90584987,222.34,222.3,2.44]
[1734482599538,17.90584987,222.33,222.3,2.44]
[1734482599748,9.52658433,222.32,222.3,2.44]
[1734482599946,180.09520277,222.4,222.3,2.44]
[1734482600149,25.03569532,222.39,222.33,2.2483]
[1734482600447,17.90779455,222.38,222.31,1.5591]
[1734482600642,7.27904906,222.37,222.31,1.5591]
[1734482600840,2.2479,222.37,222.33,2.2482]
[1734482601038,25.03574606,222.39,222.31,1.5591]
[1734482601248,17.90779455,222.38,222.31,1.5591]
[1734482601449,7.27904906,222.37,222.32,2.2483]
[1734482601645,17.90831452,222.38,222.31,1.5591]
[1734482601847,7.27904906,222.37,222.31,1.5591]
[1734482602149,7.27904906,222.37,222.36,2.248]
[1734482602346,2.2476,222.4,222.36,4.688]
[1734482603142,20.15586563,222.4,222.36,4.688]
[1734482603345,7.27905917,222.39,222.37,2.2479]
[1734482603547,17.90826563,222.39,222.36,2.44]
[1734482603748,7.27905917,222.38,222.36,2.44]
[1734482604250,10.62920646,222.39,222.36,2.44]
[1734482604543,155.2638789,222.44,222.36,2.44]
[1734482604748,25.0330835,222.43,222.36,2.44]
[1734482605044,2.2477,222.4,222.36,4.6879]
[1734482605549,20.15382537,222.4,222.36,4.6879]
[1734482605741,17.90612537,222.39,222.36,2.44]
[1734482605942,155.2638789,222.46,222.37,10.68114495]
[1734482606148,7.27749387,222.45,222.37,10.68114495]
[1734482606348,7.27749387,222.45,222.44,2.2472]
[1734482606656,7.27749387,222.47,222.44,4.6872]
[1734482606946,2.2469,222.48,222.45,2.2471]
[1734482607150,7.27708937,222.5,222.44,2.44]
[1734482607345,480.15939919,222.56,222.44,2.44]
[1734482607346,14.39975293,222.53,222.44,2.44]
[1734482607542,7.27708937,222.52,222.44,2.44]
[1734482607745,259.10335125,222.56,222.44,2.44]
[1734482607746,2.2462,222.54,222.44,2.44]
[1734482608043,2.2462,222.54,222.47,2.2469]
[1734482608242,2.2462,222.54,222.44,2.44]
[1734482609153,2.2462,222.54,222.49,2.2466]
[1734482609348,2.2462,222.54,222.5,2.44]
[1734482609545,2.2462,222.54,222.51,2.44]
[1734482610654,2.2461,222.55,222.51,2.44]
[1734482610849,12.14684495,222.62,222.51,2.44]
[1734482611050,14.36317665,222.61,222.51,2.44]
[1734482611447,2.2458,222.58,222.53,2.2463]
[1734482613551,2.2458,222.58,222.54,2.2462]
[1734482613855,7.24473168,222.61,222.52,10.68114495]
[1734482614048,7.24473168,222.64,222.52,13.84644495]
[1734482614252,17.92587663,222.66,222.52,13.84644495]
[1734482614553,2.2453,222.63,222.52,13.84644495]
[1734482615350,10.68114495,222.66,222.52,13.84644495]
[1734482615855,10.68114495,222.66,222.59,2.2456]
[1734482616046,10.68114495,222.66,222.52,13.84644495]
[1734482616047,2.245,222.66,222.6,2.44]
[1734482616252,2.245,222.66,222.61,2.44]
[1734482616454,2.245,222.66,222.62,2.2453]
[1734482616754,155.2638789,222.73,222.64,10.68114495]
[1734482616755,2.2444,222.73,222.64,10.68114495]
[1734482617553,2.2444,222.73,222.69,2.2447]
[1734482617753,2.2444,222.73,222.7,2.44]
[1734482618153,10.68114495,222.78,222.7,2.44]
[1734482618352,2.2439,222.77,222.7,2.44]
[1734482619148,2.2439,222.77,222.72,2.2443]
[1734482619650,10.68114495,222.82,222.7,2.44]
[1734482619651,2.2438,222.78,222.73,2.2442]
[1734482619856,0.40036,222.78,222.7,13.12114495]
[1734482620656,0.40036,222.78,222.73,10.68114495]
[1734482620854,0.40036,222.78,222.76,10.68114495]
[1734482621048,155.2638789,222.89,222.76,10.68114495]
[1734482621049,10.68114495,222.91,222.77,2.44]
[1734482621254,17.58804601,222.9,222.77,2.44]
[1734482621455,7.18425155,222.89,222.77,2.44]
[1734482622056,2.2429,222.87,222.79,10.68114495]
[1734482623062,2.2427,222.89,222.84,2.2431]
[1734482623259,5.41260505,222.92,222.84,1.10296706]
[1734482623563,10.68114495,222.95,222.84,1.10296706]
[1734482623964,5.34310216,222.93,222.84,1.10296706]
[1734482624368,2.44,222.96,222.84,1.10296706]
[1734482624662,2.2424,222.91,222.85,2.243]
[1734482624859,10.68114495,222.98,222.84,1.10296706]
[1734482625064,10.68114495,222.98,222.85,10.68114495]
[1734482625267,5.28241281,222.99,222.88,10.68114495]
[1734482625455,12.20464495,223.01,222.89,2.44]
[1734482626161,1.5235,223.01,222.89,2.44]
[1734482626362,10.68114495,223.0,222.89,2.44]
[1734482626864,15.95763275,223.0,222.89,2.44]
[1734482627960,2.2428,222.88,222.86,2.44]
[1734482628157,10.68114495,222.94,222.86,2.44]
[1734482628765,5.2764878,223.0,222.86,2.44]
[1734482629063,15.95763275,223.0,222.86,2.44]
[1734482629262,15.95763275,223.0,222.87,13.12114495]
[1734482629461,15.95763275,223.0,222.88,2.44]
[1734482629662,1.5288,223.02,222.88,0.50619287]
[1734482630263,1.5288,223.02,222.89,2.2426]
[1734482630564,10.68114495,223.0,222.89,2.2426]
[1734482630765,10.68114495,222.97,222.88,2.44]
[1734482631967,2.2424,222.92,222.88,0.56753006]
[1734482632170,10.68114495,222.97,222.88,0.56753006]
[1734482632572,2.2425,222.91,222.88,0.56753006]
[1734482633072,1.4394,223.0,222.87,10.68114495]
[1734482633263,1.4394,223.0,222.88,2.44]
[1734482634064,1.4394,223.0,222.9,2.2425]
[1734482634265,10.68114495,223.05,222.9,10.68114495]
[1734482634474,5.30779844,223.03,222.9,10.68114495]
[1734482634674,5.30779844,223.03,222.89,2.44]
[1734482634675,10.68114495,223.02,222.89,2.44]
[1734482635173,2.2419,222.97,222.9,10.68114495]
[1734482635977,2.2417,222.99,222.9,2.89150322]
[1734482636567,2.2417,222.99,222.95,2.242]
[1734482637476,2.2414,223.02,222.97,2.2418]
[1734482637971,5.50260195,223.06,222.96,10.68114495]
[1734482637972,10.68114495,223.09,222.96,10.68114495]
[1734482638177,10.68114495,223.09,222.99,2.2416]
[1734482638373,10.68114495,223.09,223.0,2.44]
[1734482638677,5.39472051,223.09,223.01,2.2414]
[1734482638876,15.06284495,223.12,223.01,2.2414]
[1734482639375,2.2411,223.05,223.01,2.2414]
[1734482639777,2.2409,223.07,223.02,2.2413]
[1734482640276,5.25150737,223.13,223.0,2.44]
[1734482640578,10.68114495,223.16,223.04,2.2411]
[1734482640779,10.68114495,223.16,223.0,2.44]
[1734482640780,10.68114495,223.16,223.05,2.42]
[1734482640982,2.2408,223.08,223.06,2.42]
[1734482642379,2.2407,223.09,223.06,2.42]
[1734482643185,10.68114495,223.16,223.06,2.42]
[1734482644282,2.2404,223.12,223.07,2.2408]
[1734482644477,10.68114495,223.16,223.07,2.2408]
[1734482645485,4.5415,223.18,223.07,2.2408]
[1734482645886,2.2404,223.11,223.06,2.42]
[1734482646582,2.2404,223.12,223.07,2.2408]
[1734482647284,2.2403,223.13,223.08,2.2406]
[1734482647478,2.2403,223.13,223.06,2.42]
[1734482647479,10.68114495,223.19,223.06,2.42]
[1734482647685,10.68114495,223.16,223.06,2.42]
[1734482647886,2.2405,223.11,223.06,2.42]
[1734482648684,2.241,223.06,223.05,2.42]
[1734482648886,10.68114495,223.13,223.04,2.42]
[1734482651588,2.2409,223.07,223.04,2.42]
[1734482651786,10.68114495,223.13,223.04,2.42]
[1734482651984,2.241,223.05,223.04,2.42]
[1734482652483,2.241,223.05,223.04,0.61348418]
[1734482652682,155.2638789,223.12,222.98,10.68114495]
[1734482652984,178.26484526,223.11,222.96,1.5295]
[1734482653189,2.2415,223.01,222.97,2.2418]
[1734482653384,10.68114495,223.07,222.98,2.42]
[1734482653687,10.68114495,223.04,222.93,2.42]
[1734482653988,155.2638789,223.04,222.95,10.68114495]
[1734482654187,155.2638789,223.08,222.99,10.68114495]
[1734482654392,2.2411,223.05,223.0,2.42]
[1734482655295,2.2411,223.04,223.0,4.6615]
[1734482655685,155.2638789,223.08,223.0,2.42]
[1734482655891,2.2413,223.03,223.0,2.42]
[1734482656195,155.2638789,223.08,223.0,2.42]
[1734482656391,2.241,223.05,223.0,4.6614]
[1734482656587,155.2638789,223.07,223.0,2.42]
[1734482656799,155.2638789,223.08,223.0,2.42]
[1734482656987,155.2638789,223.09,223.0,2.42]
[1734482657191,2.2409,223.07,223.03,2.2412]
[1734482657493,155.2638789,223.13,223.06,10.68114495]
[1734482657692,2.24,223.16,223.11,2.2403]
[1734482657890,155.2638789,223.17,223.12,2.42]
[1734482658292,2.2397,223.18,223.12,2.42]
[1734482658494,2.2397,223.18,223.12,13.10114495]
[1734482658992,155.2638789,223.2,223.12,13.10114495]
[1734482659187,2.2396,223.2,223.14,2.2401]
[1734482659589,5.89239908,223.24,223.14,2.2401]
[1734482659791,2.2397,223.19,223.13,2.2402]
[1734482660000,7.59697667,223.24,223.15,10.68114495]
[1734482660293,0.41115,223.24,223.15,10.68114495]
[1734482660494,0.41115,223.24,223.13,4.4892]
[1734482660495,0.41115,223.24,223.2,10.68114495]
[1734482660690,0.41115,223.24,223.21,2.42]
[1734482660995,17.6052765,223.32,223.23,10.68114495]
[1734482661186,7.19280029,223.31,223.23,10.68114495]
[1734482661590,10.41247621,223.33,223.23,10.68114495]
[1734482661591,17.6052765,223.32,223.23,10.68114495]
[1734482661796,7.19280029,223.31,223.23,10.68114495]
[1734482661995,2.2383,223.33,223.27,2.2388]
[1734482662198,9.43110029,223.33,223.28,2.42]
[1734482662496,3.9535,223.39,223.28,2.42]
[1734482662794,21.56210891,223.39,223.28,2.42]
[1734482662989,17.60860891,223.38,223.28,4.6587]
[1734482663189,1.5335,223.39,223.28,2.42]
[1734482663190,2.2381,223.35,223.28,2.42]
[1734482663389,7.19182077,223.37,223.29,10.68114495]
[1734482663585,2.2379,223.37,223.3,2.2385]
[1734482663992,1.424,223.41,223.28,2.42]
[1734482664188,24.6366486,223.43,223.28,2.42]
[1734482664394,17.60575764,223.42,223.29,4.3533]
[1734482664594,7.19182077,223.41,223.29,4.3533]
[1734482664791,2.2379,223.37,223.3,2.42]
[1734482664992,17.60148726,223.42,223.3,2.42]
[1734482665292,9.42932077,223.41,223.3,19.36225069]
[1734482665494,16.94225069,223.5,223.3,16.94225069]
[1734482665697,17.58570925,223.49,223.31,2.42]
[1734482665900,16.94225069,223.46,223.3,16.94225069]
[1734482666095,17.58677354,223.45,223.31,2.42]
[1734482666292,7.18229278,223.44,223.29,4.3533]
[1734482666496,2.2379,223.37,223.32,2.42]
[1734482666799,2.2379,223.37,223.29,4.3533]
[1734482666997,2.2379,223.37,223.3,2.42]
[1734482667198,2.2379,223.37,223.3,4.6585]
[1734482667598,2.2379,223.37,223.31,5.32820516]
[1734482667799,178.11037373,223.45,223.31,5.32820516]
[1734482667800,7.18229278,223.39,223.31,5.32820516]
[1734482668001,17.57972799,223.44,223.31,5.32820516]
[1734482668200,7.18229278,223.43,223.31,5.32820516]
[1734482668697,7.18229278,223.44,223.31,5.32820516]
[1734482669200,16.94225069,223.42,223.29,2.8687]
[1734482669392,17.57972799,223.41,223.3,2.42]
[1734482669592,17.57972799,223.41,223.31,2.42]
[1734482669593,2.2382,223.34,223.31,2.42]
[1734482669797,2.2382,223.34,223.32,2.42]
[1734482671504,16.94225069,223.42,223.32,2.42]
[1734482671798,7.17196368,223.41,223.32,2.42]
[1734482672398,7.17196368,223.41,223.23,4.384]
[1734482672596,2.2384,223.31,223.24,2.42]
[1734482673296,7.17196368,223.37,223.23,1.4281]
[1734482673297,9.59196368,223.37,223.23,1.4281]
[1734482673493,17.40712055,223.36,223.23,3.8481]
[1734482673803,14.18769069,223.35,223.23,3.8481]
[1734482674000,10.39139354,223.34,223.22,5.44895704]
[1734482674193,14.18769069,223.33,223.23,2.42]
[1734482674401,2.2387,223.28,223.24,2.42]
[1734482674697,7.17196368,223.31,223.24,0.62066742]
[1734482674901,172.82723612,223.31,223.24,0.62066742]
[1734482675103,40.41764938,223.3,223.24,0.62066742]
[1734482675305,17.56335722,223.29,223.24,0.62066742]
[1734482675498,7.17196368,223.28,223.2,2.42]
[1734482675699,7.17196368,223.28,223.11,16.94225069]
[1734482675896,7.17196368,223.28,223.01,4.3837]
[1734482675897,16.94225069,223.26,223.14,2.42]
[1734482676097,17.56335722,223.25,223.13,2.42]
[1734482676301,2.2402,223.14,223.11,2.42]
[1734482676601,17.56335722,223.21,223.1,2.42]
[1734482676800,2.2398,223.17,223.1,4.6605]
[1734482676994,10.39139354,223.19,223.1,2.42]
[1734482677196,7.17196368,223.18,223.1,2.42]
[1734482677398,155.2638789,223.24,223.1,2.42]
[1734482677399,24.61206728,223.23,223.1,2.42]
[1734482677603,24.61206728,223.22,223.1,2.42]
[1734482677904,17.58197387,223.21,223.1,2.42]
[1734482678099,17.58197387,223.2,223.09,5.46557662]
[1734482678403,17.58197387,223.19,223.13,2.2402]
[1734482678600,7.17196368,223.18,223.1,2.42]
[1734482678800,7.17196368,223.18,223.11,16.94225069]
[1734482678999,2.2393,223.23,223.15,2.24]
[1734482679195,2.2393,223.23,223.16,2.42]
[1734482679397,24.62548197,223.24,223.17,2.42]
[1734482679599,24.62548197,223.24,223.18,2.42]
[1734482679600,17.59015866,223.23,223.18,2.42]
[1734482679802,7.17196368,223.22,223.19,2.42]
[1734482680203,24.62909529,223.26,223.19,2.42]
[1734482680400,24.62909529,223.25,223.19,2.42]
[1734482680602,1.4463,223.28,223.19,2.42]
[1734482680603,17.59015866,223.24,223.19,2.42]
[1734482680904,17.59015866,223.23,223.19,2.42]
[1734482681105,155.2638789,223.29,223.19,2.42]
[1734482681305,17.47797737,223.28,223.19,2.42]
[1734482681602,156.7758789,223.3,223.19,2.42]
[1734482681603,1.512,223.3,223.19,2.42]
[1734482682004,18.45425069,223.3,223.19,2.42]
[1734482682203,2.2389,223.27,223.19,2.42]
[1734482682408,18.45425069,223.3,223.19,2.42]
[1734482682906,2.2392,223.24,223.19,4.6596]
[1734482683206,18.45425069,223.3,223.19,2.42]
[1734482683403,2.2393,223.23,223.19,2.42]
[1734482683809,16.94225069,223.3,223.19,2.42]
[1734482684007,2.2388,223.28,223.19,2.42]
[1734482684203,12.72508779,223.33,223.19,2.42]
[1734482684411,7.21109087,223.33,223.19,19.36225069]
[1734482684706,1.4847,223.36,223.19,19.36225069]
[1734482685110,2.2383,223.33,223.27,2.2388]
[1734482685312,6.81009394,223.36,223.28,2.42]
[1734482685609,2.2384,223.31,223.28,2.42]
[1734482685805,6.81009394,223.36,223.28,2.42]
[1734482686209,2.2386,223.29,223.28,2.42]
[1734482686403,2.2386,223.29,223.24,2.42]
[1734482686903,2.2385,223.31,223.25,2.239]
[1734482687104,18.52085069,223.38,223.24,2.42]
[1734482687105,1.5786,223.38,223.24,2.42]
[1734482687611,1.5786,223.38,223.28,2.2387]
[1734482687808,1.5786,223.38,223.29,2.42]
[1734482688109,2.2382,223.34,223.29,2.42]
[1734482689307,2.2385,223.31,223.29,2.42]
[1734482689608,10.59290732,223.35,223.29,2.42]
[1734482690603,2.2385,223.3,223.29,2.42]
[1734482692506,10.59290732,223.35,223.12,2.9898]
[1734482692507,10.59290732,223.32,223.2,5.32749193]
[1734482692813,10.59290732,223.32,223.21,2.42]
[1734482693003,10.59290732,223.32,223.2,7.56689193]
[1734482693004,2.239,223.25,223.2,7.56689193]
[1734482693205,10.59290732,223.29,223.21,2.42]
[1734482693409,10.59290732,223.29,223.2,2.42]
[1734482693713,10.59290732,223.29,223.16,2.2399]
[1734482693714,2.2394,223.22,223.18,2.42]
[1734482693908,2.2394,223.22,223.17,2.42]
[1734482694610,2.2394,223.22,223.17,4.6598]
[1734482694812,10.59290732,223.26,223.17,2.42]
[1734482695011,2.2395,223.2,223.17,2.42]
[1734482695409,1.4922,223.28,223.12,13.58270732]
[1734482695410,10.59290732,223.23,223.12,2.9898]
[1734482695614,2.2399,223.17,223.14,2.42]
[1734482696314,2.2399,223.16,223.14,2.42]
[1734482696611,10.59290732,223.23,223.14,2.42]
[1734482697214,10.59290732,223.23,223.14,4.6601]
[1734482697409,7.23011191,223.22,223.14,2.42]
[1734482697612,7.23050066,223.25,223.14,2.42]
[1734482697916,7.23050066,223.25,223.18,2.2397]
[1734482698111,2.2394,223.21,223.14,2.42]
[1734482698412,7.23050066,223.25,223.16,2.2399]
[1734482698712,7.23050066,223.25,223.14,2.42]
[1734482699014,2.2397,223.19,223.15,2.24]
[1734482699314,7.23050066,223.24,223.14,2.42]
[1734482699515,7.23050066,223.25,223.14,2.42]
[1734482699718,2.2394,223.21,223.17,2.2398]
[1734482700114,12.13680732,223.29,223.15,10.59290732]
[1734482700316,24.80424983,223.28,223.15,10.59290732]
[1734482700613,10.59290732,223.26,223.14,2.42]
[1734482700911,17.72392733,223.25,223.15,10.59290732]
[1734482701311,1.5439,223.29,223.18,10.59290732]
[1734482701515,15.88813421,223.29,223.19,2.42]
[1734482701716,14.34423421,223.28,223.19,2.42]
[1734482701916,2.2391,223.25,223.2,2.2395]
[1734482702316,17.75505923,223.26,223.2,2.2395]
[1734482702606,2.2392,223.24,223.2,2.2395]
[1734482702810,19.99425923,223.24,223.2,2.2395]
[1734482703014,7.25172624,223.23,223.2,2.2395]
[1734482703211,26.40084057,223.29,223.2,2.2395]
[1734482703418,24.85694057,223.28,223.19,2.42]
[1734482703620,10.5089357,223.27,223.19,2.42]
[1734482703819,2.2386,223.29,223.19,2.42]
[1734482704321,2.2388,223.28,223.24,2.239]
[1734482704614,2.2388,223.28,223.24,2.42]
[1734482705314,2.2388,223.28,223.24,4.659]
[1734482705525,2.2388,223.28,223.24,2.42]
[1734482706119,17.7714851,223.31,223.24,2.42]
[1734482706421,17.7723099,223.3,223.21,2.42]
[1734482706617,17.7723099,223.29,223.21,4.6594]
[1734482706817,7.25836147,223.28,223.21,2.42]
[1734482707012,24.8667369,223.32,223.27,2.2388]
[1734482707213,24.8667369,223.32,223.26,2.42]
[1734482707414,155.2638789,223.37,223.27,2.42]
[1734482707623,155.2638789,223.37,223.3,2.2384]
[1734482707624,24.86808813,223.36,223.3,2.2384]
[1734482707819,2.2381,223.34,223.3,2.2384]
[1734482708021,9.49595811,223.34,223.3,2.2384]
[1734482708225,22.64889088,223.38,223.33,2.2382]
[1734482708425,9.4950504,223.37,223.33,2.2382]
[1734482708626,22.63409917,223.41,223.32,2.42]
[1734482708828,2.2378,223.38,223.32,2.42]
[1734482709019,58.07966778,223.39,223.32,2.42]
[1734482709219,24.85703717,223.38,223.32,2.42]
[1734482709417,24.85703717,223.37,223.32,2.42]
[1734482709616,17.7626009,223.36,223.32,2.42]
[1734482709816,17.7626009,223.35,223.27,2.2387]
[1734482710020,2.2385,223.31,223.28,2.42]
[1734482710920,2.2386,223.29,223.28,2.42]
[1734482712031,19.99601194,223.29,223.28,2.42]
[1734482712423,19.99601194,223.29,223.24,6.2336]
[1734482712625,19.99611194,223.28,223.24,6.2336]
[1734482712822,2.2387,223.28,223.24,6.2336]
[1734482713422,24.86219199,223.3,223.25,2.239]
[1734482713625,7.25591243,223.29,223.24,3.9945]
[1734482713923,7.25591243,223.29,223.24,2.42]
[1734482713924,17.77155891,223.29,223.24,2.42]
[1734482714122,17.77155891,223.29,223.14,1.4623]
[1734482714123,7.25591243,223.28,223.2,2.42]
[1734482714424,10.59290732,223.27,223.15,2.9513]
[1734482714623,24.87092301,223.26,223.17,2.42]
[1734482714825,24.87092301,223.25,223.17,2.42]
[1734482715025,24.87092301,223.24,223.17,2.42]
[1734482715230,17.77155891,223.23,223.17,2.42]
[1734482715432,2.2395,223.2,223.17,4.6598]